fUST/lending_fUST_20260114
["ID","MTS","AMOUNT","RATE_DAILY","PERIOD"]
[401892717,1768397451295,-668.88471487,0.0002,2]
[401892719,1768397451304,-14703.49659754,0.0002,2]
[401892722,1768397451313,-371.66132516,0.0002,2]
[401892724,1768397451322,-200181.45649297,0.0002,2]
[401892725,1768397451331,-163524.2208646,0.0002,7]
[401892728,1768397451340,-804.32909815,0.0002,2]
[401892730,1768397451349,-77401.68985457,0.0002,2]
[401892732,1768397451358,-23000.0,0.0002,2]
[401892734,1768397451367,-82346.01286359,0.0002,7]
[401892736,1768397451376,-202.7514447,0.0002,2]
[401892738,1768397451386,-504.32904356,0.0002,2]
[401892740,1768397451395,-1671.0,0.0002,10]
[401892742,1768397451404,-1140.2,0.00020008,2]
[401892744,1768397451414,-454.65002405,0.00020034,4]
[401892746,1768397451423,-454.65002405,0.00020034,4]
[401892748,1768397451432,-503.71435101,0.0002013,2]
[401892750,1768397451442,-225.18697532,0.00020151,2]
[401892752,1768397451451,-617.40005154,0.00020151,2]
[401892754,1768397451461,-454.65002405,0.00020223,4]
[401892756,1768397451470,-454.65002405,0.00020223,4]
[401892758,1768397451481,-200.91058964,0.00020274,2]
[401892760,1768397451491,-5446.58201638,0.00020274,2]
[401892762,1768397451499,-350.0,0.00020274,2]
[401892765,1768397451509,-6500.0,0.00020274,2]
[401892767,1768397451519,-5902.72600724,0.00020274,2]
[401892769,1768397451528,-3073.24025849,0.00020396,2]
[401892771,1768397451539,-339.58,0.000204,2]
[401892773,1768397451548,-336.89,0.000204,2]
[401892775,1768397451557,-454.65002405,0.00020412,4]
[401892777,1768397451566,-454.65002405,0.00020412,4]
[401892779,1768397451576,-4427.0,0.00020458,2]
[401892781,1768397451585,-2258.255079,0.00020548,2]
[401892783,1768397451595,-294.66,0.000206,2]
[401892785,1768397451608,-454.65002405,0.00020601,4]
[401892787,1768397451618,-456.66051119,0.00020601,4]
[401892789,1768397451627,-1389.51235473,0.0002061,2]
[401892791,1768397451637,-11434.83681079,0.00020637,2]
[401892793,1768397451647,-233.51889341,0.00020699,2]
[401892796,1768397451656,-640.24385345,0.00020699,2]
[401892798,1768397451665,-2000.0,0.00020782,7]
[401892800,1768397451676,-1000.0,0.00020822,2]
[401892802,1768397451686,-450.0,0.00020822,2]
[401892804,1768397451695,-7000.0,0.00020822,2]
[401892806,1768397451704,-1000.0,0.00020894,2]
[401892808,1768397451714,-1000.0,0.00020894,2]
[401892810,1768397451723,-579.0,0.00020894,2]
[401892812,1768397451734,-256.51440562,0.000209,2]
[401892814,1768397451743,-1119.07702779,0.0002094,15]
[401892816,1768397451752,-3000.0,0.00021,2]
[401892819,1768397451761,-277.38884084,0.00021,2]
[401892821,1768397451771,-749.999999,0.00021,2]
[401892823,1768397451780,-50000.0,0.00021,2]
[401892825,1768397451790,-3000.0,0.0002101,2]
[401892827,1768397451799,-3000.0,0.0002102,2]
[401892829,1768397451809,-3000.0,0.0002103,2]
[401892831,1768397451818,-3000.0,0.0002104,2]
[401892833,1768397451827,-3000.0,0.0002105,2]
[401892835,1768397451836,-3000.0,0.0002106,2]
[401892837,1768397451846,-3000.0,0.0002107,2]
[401892839,1768397451855,-3000.0,0.0002108,2]
[401892841,1768397451864,-3000.0,0.0002109,2]
[401892843,1768397451874,-3000.0,0.000211,2]
[401892845,1768397451883,-5469.7,0.000211,2]
[401892847,1768397451894,-167.77,0.000211,2]
[401892849,1768397451903,-38726.83,0.000211,2]
[401892851,1768397451913,-3000.0,0.0002111,2]
[401892853,1768397451923,-3000.0,0.0002112,2]
[401892855,1768397451932,-3000.0,0.0002113,2]
[401892858,1768397451942,-3000.0,0.0002114,2]
[401892860,1768397451951,-151.0,0.0002114,2]
[401892862,1768397451961,-151.0,0.0002114,2]
[401892864,1768397451971,-151.0,0.0002114,2]
[401892866,1768397451981,-151.0,0.0002114,2]
[401892868,1768397451990,-151.0,0.0002114,2]
[401892870,1768397452000,-3000.0,0.0002115,2]
[401892872,1768397452009,-3000.0,0.0002116,2]
[401892874,1768397452018,-3000.0,0.0002117,2]
[401892876,1768397452027,-3000.0,0.0002118,2]
[401892878,1768397452036,-3000.0,0.0002119,2]
[401892880,1768397452045,-3000.0,0.000212,2]
[401892882,1768397452055,-3000.0,0.0002121,2]
[401892884,1768397452064,-3000.0,0.0002122,2]
[401892886,1768397452074,-3000.0,0.0002123,2]
[401892888,1768397452083,-3000.0,0.0002124,2]
[401892890,1768397452093,-242.15909246,0.00021247,2]
[401892892,1768397452102,-663.93287602,0.00021247,2]
[401892894,1768397452111,-3000.0,0.0002125,2]
[401892896,1768397452121,-3000.0,0.0002126,2]
[401892898,1768397452130,-3000.0,0.0002127,2]
[401892900,1768397452139,-3000.0,0.0002128,2]
[401892902,1768397452148,-151.0,0.0002128,2]
[401892904,1768397452157,-3000.0,0.0002129,2]
[401892906,1768397452166,-3000.0,0.000213,2]
[401892908,1768397452176,-3000.0,0.0002131,2]
[401892911,1768397452185,-3000.0,0.0002132,2]
[401892913,1768397452195,-3000.0,0.0002133,2]
[401892915,1768397452205,-3000.0,0.0002134,2]
[401892917,1768397452214,-3000.0,0.0002135,2]
[401892919,1768397452224,-3000.0,0.0002136,2]
[401892921,1768397452233,-550.0,0.0002137,2]
[401892923,1768397452242,-7500.0,0.0002137,2]
[401892925,1768397452252,-3000.0,0.0002137,2]
[401892927,1768397452261,-3000.0,0.0002138,2]
[401892929,1768397452271,-3000.0,0.0002139,2]
[401892931,1768397452280,-1140.2,0.00021395,2]
[401892933,1768397452289,-3000.0,0.000214,2]
[401892935,1768397452299,-2285.797199,0.00021407,7]
[401892937,1768397452309,-3000.0,0.0002141,2]
[401892939,1768397452318,-3000.0,0.0002142,2]
[401892941,1768397452328,-4716.661967,0.0002143,2]
[401892943,1768397452337,-1040.0176033,0.000215,2]
[401892946,1768397452347,-12864.48059022,0.000215,2]
[401892948,1768397452357,-1282.68079108,0.00021544,2]
[401892950,1768397452366,-339.58,0.000216,2]
[401892952,1768397452375,-336.89,0.000216,2]
[401892954,1768397452385,-265.87708981,0.00021795,2]
[401892956,1768397452394,-688.49839244,0.00021795,2]
[401892958,1768397452404,-1564.460747,0.00021885,7]
[401892960,1768397452414,-160.18656469,0.00021917,2]
[401892962,1768397452423,-463.553408,0.00021918,2]
[401892964,1768397452433,-151.0,0.00021918,2]
[401892966,1768397452442,-151.0,0.00021918,2]
[401892968,1768397452452,-151.0,0.00021918,2]
[401892970,1768397452461,-151.0,0.00021918,2]
[401892972,1768397452471,-272.028283,0.00021918,2]
[401892974,1768397452481,-151.0,0.00021918,2]
[401892976,1768397452490,-241.541461,0.00021918,2]
[401892978,1768397452500,-216.013567,0.00021918,2]
[401892980,1768397452510,-216.013567,0.00021918,2]
[401892982,1768397452519,-216.013567,0.00021918,2]
[401892984,1768397452528,-216.013567,0.00021918,2]
[401892987,1768397452537,-216.013567,0.00021918,2]
[401892989,1768397452547,-216.013567,0.00021918,2]
[401892991,1768397452556,-151.0,0.00021918,2]
[401892993,1768397452566,-216.013567,0.00021918,2]
[401892995,1768397452575,-151.0,0.00021918,2]
[401892997,1768397452585,-216.013567,0.00021918,2]
[401892999,1768397452595,-170.441606,0.00021918,2]
[401893001,1768397452608,-151.0,0.00021918,2]
[401893003,1768397452617,-154.979883,0.00021918,2]
[401893005,1768397452627,-162.301205,0.00021918,2]
[401893008,1768397452637,-151.0,0.00021918,2]
[401893010,1768397452648,-151.0,0.00021918,2]
[401893012,1768397452657,-151.0,0.00021918,2]
[401893014,1768397452666,-151.0,0.00021918,2]
[401893016,1768397452677,-151.0,0.00021918,2]
[401893018,1768397452686,-151.0,0.00021918,2]
[401893020,1768397452695,-210.162215,0.00021918,2]
[401893022,1768397452705,-151.0,0.00021918,2]
[401893024,1768397452716,-151.0,0.00021918,2]
[401893026,1768397452726,-151.0,0.00021918,2]
[401893028,1768397452735,-151.0,0.00021918,2]
[401893030,1768397452744,-151.0,0.00021918,2]
[401893032,1768397452753,-151.0,0.00021918,2]
[401893034,1768397452763,-151.0,0.00021918,2]
[401893036,1768397452773,-243.779961,0.00021918,2]
[401893038,1768397452783,-176.527375,0.00021918,2]
[401893040,1768397452792,-151.0,0.00021918,2]
[401893042,1768397452802,-151.0,0.00021918,2]
[401893045,1768397452812,-151.0,0.00021918,2]
[401893047,1768397452823,-151.0,0.00021918,2]
[401893048,1768397452833,-151.0,0.00021918,2]
[401893050,1768397452843,-151.0,0.00021918,2]
[401893053,1768397452853,-163.463878,0.00021918,2]
[401893055,1768397452863,-151.0,0.00021918,2]
[401893057,1768397452872,-151.0,0.00021918,2]
[401893059,1768397452882,-151.0,0.00021918,2]
[401893060,1768397452891,-166.519335,0.00021918,2]
[401893062,1768397452901,-151.0,0.00021918,2]
[401893064,1768397452911,-151.0,0.00021918,2]
[401893067,1768397452922,-151.0,0.00021918,2]
[401893069,1768397452932,-151.0,0.00021918,2]
[401893071,1768397452941,-151.0,0.00021918,2]
[401893073,1768397452951,-151.0,0.00021918,2]
[401893075,1768397452960,-151.0,0.00021918,2]
[401893077,1768397452970,-155.262134,0.00021918,2]
[401893079,1768397452979,-160.546344,0.00021918,2]
[401893081,1768397452988,-151.0,0.00021918,2]
[401893083,1768397452998,-151.0,0.00021918,2]
[401893085,1768397453007,-151.0,0.00021918,2]
[401893087,1768397453017,-151.0,0.00021918,2]
[401893089,1768397453026,-151.0,0.00021918,2]
[401893091,1768397453036,-151.0,0.00021918,2]
[401893092,1768397453045,-151.0,0.00021918,2]
[401893095,1768397453055,-151.0,0.00021918,2]
[401893096,1768397453065,-169.444097,0.00021918,2]
[401893098,1768397453075,-151.0,0.00021918,2]
[401893101,1768397453086,-151.0,0.00021918,2]
[401893103,1768397453095,-151.0,0.00021918,2]
[401893105,1768397453105,-151.0,0.00021918,2]
[401893107,1768397453115,-879.438014,0.00021918,2]
[401893109,1768397453124,-879.438014,0.00021918,2]
[401893110,1768397453133,-879.438014,0.00021918,2]
[401893112,1768397453143,-879.438014,0.00021918,2]
[401893115,1768397453153,-879.438014,0.00021918,2]
[401893117,1768397453163,-879.438014,0.00021918,2]
[401893119,1768397453173,-879.438014,0.00021918,2]
[401893121,1768397453182,-879.438014,0.00021918,2]
[401893122,1768397453191,-216.477356,0.00021918,2]
[401893125,1768397453201,-216.477356,0.00021918,2]
[401893126,1768397453211,-151.0,0.00021918,2]
[401893129,1768397453220,-151.0,0.00021918,2]
[401893131,1768397453230,-428.566923,0.00021918,2]
[401893133,1768397453240,-428.566923,0.00021918,2]
[401893135,1768397453250,-216.477356,0.00021918,2]
[401893137,1768397453260,-216.477356,0.00021918,2]
[401893139,1768397453270,-151.0,0.00021918,2]
[401893141,1768397453280,-151.0,0.00021918,2]
[401893143,1768397453290,-428.566923,0.00021918,2]
[401893145,1768397453299,-428.566923,0.00021918,2]
[401893147,1768397453309,-216.477356,0.00021918,2]
[401893149,1768397453319,-216.477356,0.00021918,2]
[401893151,1768397453329,-151.0,0.00021918,2]
[401893153,1768397453339,-428.566923,0.00021918,2]
[401893155,1768397453349,-151.0,0.00021918,2]
[401893157,1768397453359,-428.566923,0.00021918,2]
[401893159,1768397453368,-216.477356,0.00021918,2]
[401893161,1768397453379,-216.477356,0.00021918,2]
[401893163,1768397453388,-428.566923,0.00021918,2]
[401893165,1768397453398,-428.566923,0.00021918,2]
[401893167,1768397453408,-151.0,0.00021918,2]
[401893169,1768397453418,-163.521598,0.00021918,2]
[401893171,1768397453427,-151.0,0.00021918,2]
[401893173,1768397453437,-151.0,0.00021918,2]
[401893175,1768397453447,-431.74536,0.00021918,2]
[401893177,1768397453456,-431.74536,0.00021918,2]
[401893179,1768397453466,-151.0,0.00021918,2]
[401893181,1768397453477,-151.0,0.00021918,2]
[401893184,1768397453487,-431.74536,0.00021918,2]
[401893186,1768397453498,-431.74536,0.00021918,2]
[401893188,1768397453508,-431.74536,0.00021918,2]
[401893190,1768397453518,-431.74536,0.00021918,2]
[401893192,1768397453528,-431.74536,0.00021918,2]
[401893211,1768397453720,-431.74536,0.00021918,2]
[401893213,1768397453731,-151.0,0.00021918,2]
[401893215,1768397453741,-151.0,0.00021918,2]
[401893217,1768397453751,-151.0,0.00021918,2]
[401893219,1768397453761,-151.0,0.00021918,2]
[401893221,1768397453770,-151.0,0.00021918,2]
[401893223,1768397453781,-183.080684,0.00021918,2]
[401893225,1768397453790,-3688.352014,0.00021918,2]
[401893227,1768397453799,-3688.352014,0.00021918,2]
[401893229,1768397453808,-3688.352014,0.00021918,2]
[401893231,1768397453818,-3688.352014,0.00021918,2]
[401893233,1768397453827,-3688.352014,0.00021918,2]
[401893235,1768397453836,-3688.352014,0.00021918,2]
[401893237,1768397453846,-3688.352014,0.00021918,2]
[401893239,1768397453855,-3688.352014,0.00021918,2]
[401893241,1768397453865,-153.839404,0.00021918,2]
[401893243,1768397453875,-151.3487,0.00021918,2]
[401893245,1768397453884,-151.3487,0.00021918,2]
[401893247,1768397453893,-151.0,0.00021918,2]
[401893249,1768397453902,-151.0,0.00021918,2]
[401893250,1768397453912,-151.3487,0.00021918,2]
[401893253,1768397453922,-151.3487,0.00021918,2]
[401893254,1768397453932,-151.3487,0.00021918,2]
[401893256,1768397453942,-151.3487,0.00021918,2]
[401893258,1768397453952,-151.3487,0.00021918,2]
[401893260,1768397453962,-151.3487,0.00021918,2]
[401893262,1768397453971,-151.0,0.00021918,2]
[401893264,1768397453981,-151.0,0.00021918,2]
[401893266,1768397453991,-151.0,0.00021918,2]
[401893268,1768397454001,-151.0,0.00021918,2]
[401893270,1768397454010,-151.0,0.00021918,2]
[401893272,1768397454019,-275.55471384,0.00021918,2]
[401893274,1768397454029,-151.0,0.00021918,2]
[401893276,1768397454039,-151.0,0.00021918,2]
[401893277,1768397454049,-151.0,0.00021918,2]
[401893279,1768397454059,-151.0,0.00021918,2]
[401893281,1768397454068,-151.0,0.00021918,2]
[401893283,1768397454078,-151.0,0.00021918,2]
[401893285,1768397454088,-151.0,0.00021918,2]
[401893287,1768397454098,-151.0,0.00021918,2]
[401893289,1768397454108,-151.0,0.00021918,2]
[401893291,1768397454118,-151.0,0.00021918,2]
[401893293,1768397454128,-151.0,0.00021918,2]
[401893295,1768397454138,-151.0,0.00021918,2]
[401893297,1768397454147,-151.0,0.00021918,2]
[401893299,1768397454158,-151.0,0.00021918,2]
[401893301,1768397454168,-230.012904,0.00021918,2]
[401893303,1768397454177,-151.0,0.00021918,2]
[401893305,1768397454187,-151.0,0.00021918,2]
[401893307,1768397454195,-151.0,0.00021918,2]
[401893308,1768397454205,-195.880562,0.00021918,2]
[401893310,1768397454214,-244.488138,0.00021918,2]
[401893312,1768397454224,-244.488138,0.00021918,2]
[401893314,1768397454233,-244.488138,0.00021918,2]
[401893316,1768397454243,-244.488138,0.00021918,2]
[401893318,1768397454252,-244.488138,0.00021918,2]
[401893320,1768397454261,-244.488138,0.00021918,2]
[401893322,1768397454271,-244.488138,0.00021918,2]
[401893324,1768397454280,-244.488138,0.00021918,2]
[401893326,1768397454289,-244.488138,0.00021918,2]
[401893328,1768397454298,-244.488138,0.00021918,2]
[401893330,1768397454308,-244.488138,0.00021918,2]
[401893332,1768397454317,-244.488138,0.00021918,2]
[401893334,1768397454326,-174.038823,0.00021918,2]
[401893336,1768397454335,-174.038823,0.00021918,2]
[401893337,1768397454344,-174.038823,0.00021918,2]
[401893339,1768397454354,-174.038823,0.00021918,2]
[401893341,1768397454363,-174.038823,0.00021918,2]
[401893343,1768397454372,-174.038823,0.00021918,2]
[401893345,1768397454382,-174.038823,0.00021918,2]
[401893347,1768397454392,-174.038823,0.00021918,2]
[401893349,1768397454401,-174.038823,0.00021918,2]
[401893351,1768397454411,-174.038823,0.00021918,2]
[401893353,1768397454420,-174.038823,0.00021918,2]
[401893355,1768397454429,-174.038823,0.00021918,2]
[401893357,1768397454439,-151.0,0.00021918,2]
[401893359,1768397454448,-151.0,0.00021918,2]
[401893361,1768397454457,-240.755518,0.00021918,2]
[401893362,1768397454466,-151.0,0.00021918,2]
[401893364,1768397454476,-406.316369,0.00021918,2]
[401893366,1768397454486,-406.316369,0.00021918,2]
[401893368,1768397454495,-406.316369,0.00021918,2]
[401893370,1768397454505,-237.361203,0.00021918,2]
[401893372,1768397454514,-237.361203,0.00021918,2]
[401893374,1768397454524,-406.316369,0.00021918,2]
[401893376,1768397454533,-237.361203,0.00021918,2]
[401893378,1768397454542,-406.316369,0.00021918,2]
[401893380,1768397454551,-406.316369,0.00021918,2]
[401893382,1768397454561,-237.361203,0.00021918,2]
[401893384,1768397454570,-237.361203,0.00021918,2]
[401893386,1768397454579,-406.316369,0.00021918,2]
[401893388,1768397454589,-237.361203,0.00021918,2]
[401893390,1768397454599,-406.316369,0.00021918,2]
[401893392,1768397454611,-406.316369,0.00021918,2]
[401893394,1768397454620,-237.361203,0.00021918,2]
[401893396,1768397454633,-237.361203,0.00021918,2]
[401893398,1768397454643,-406.316369,0.00021918,2]
[401893400,1768397454652,-237.361203,0.00021918,2]
[401893402,1768397454661,-406.316369,0.00021918,2]
[401893404,1768397454671,-406.316369,0.00021918,2]
[401893406,1768397454682,-237.361203,0.00021918,2]
[401893408,1768397454691,-237.361203,0.00021918,2]
[401893409,1768397454700,-237.361203,0.00021918,2]
[401893411,1768397454710,-151.0,0.00021918,2]
[401893413,1768397454719,-151.0,0.00021918,2]
[401893415,1768397454728,-151.0,0.00021918,2]
[401893417,1768397454738,-151.0,0.00021918,2]
[401893419,1768397454747,-191.99,0.00021918,2]
[401893421,1768397454757,-151.0,0.00021918,2]
[401893423,1768397454766,-151.0,0.00021918,2]
[401893425,1768397454775,-155.398666,0.00021918,2]
[401893427,1768397454784,-151.0,0.00021918,2]
[401893429,1768397454794,-151.0,0.00021918,2]
[401893431,1768397454803,-151.0,0.00021918,2]
[401893433,1768397454812,-151.0,0.00021918,2]
[401893435,1768397454821,-169.388304,0.00021918,2]
[401893437,1768397454830,-171.320259,0.00021918,2]
[401893439,1768397454840,-151.0,0.00021918,2]
[401893441,1768397454849,-225.938304,0.00021918,2]
[401893443,1768397454858,-151.0,0.00021918,2]
[401893445,1768397454868,-151.0,0.00021918,2]
[401893447,1768397454877,-151.0,0.00021918,2]
[401893449,1768397454887,-151.0,0.00021918,2]
[401893451,1768397454897,-151.0,0.00021918,2]
[401893453,1768397454906,-151.0,0.00021918,2]
[401893455,1768397454915,-151.0,0.00021918,2]
[401893457,1768397454924,-151.0,0.00021918,2]
[401893459,1768397454934,-151.0,0.00021918,2]
[401893461,1768397454943,-151.0,0.00021918,2]
[401893462,1768397454952,-151.0,0.00021918,2]
[401893464,1768397454962,-1617.521004,0.00021918,2]
[401893466,1768397454972,-151.0,0.00021918,2]
[401893468,1768397454982,-1617.521004,0.00021918,2]
[401893470,1768397454993,-1617.521004,0.00021918,2]
[401893472,1768397455002,-1617.521004,0.00021918,2]
[401893474,1768397455011,-1617.521004,0.00021918,2]
[401893476,1768397455021,-1617.521004,0.00021918,2]
[401893478,1768397455030,-151.0,0.00021918,2]
[401893479,1768397455040,-1617.521004,0.00021918,2]
[401893480,1768397455049,-257.762103,0.00021918,2]
[401893481,1768397455059,-1617.521004,0.00021918,2]
[401893482,1768397455069,-1617.521004,0.00021918,2]
[401893483,1768397455078,-1617.521004,0.00021918,2]
[401893484,1768397455087,-1617.521004,0.00021918,2]
[401893485,1768397455095,-1617.521004,0.00021918,2]
[401893486,1768397455105,-151.0,0.00021918,2]
[401893487,1768397455113,-151.0,0.00021918,2]
[401893488,1768397455122,-151.0,0.00021918,2]
[401893489,1768397455131,-151.0,0.00021918,2]
[401893490,1768397455140,-151.0,0.00021918,2]
[401893491,1768397455149,-591.092287,0.00021918,2]
[401893492,1768397455158,-591.092287,0.00021918,2]
[401893493,1768397455166,-591.092287,0.00021918,2]
[401893494,1768397455175,-591.092287,0.00021918,2]
[401893495,1768397455184,-591.092287,0.00021918,2]
[401893496,1768397455193,-591.092287,0.00021918,2]
[401893497,1768397455202,-591.092287,0.00021918,2]
[401893498,1768397455211,-591.092287,0.00021918,2]
[401893499,1768397455219,-591.092287,0.00021918,2]
[401893500,1768397455229,-591.092287,0.00021918,2]
[401893501,1768397455238,-151.0,0.00021918,2]
[401893502,1768397455247,-591.092287,0.00021918,2]
[401893503,1768397455256,-151.0,0.00021918,2]
[401893505,1768397455265,-151.0,0.00021918,2]
[401893506,1768397455274,-151.0,0.00021918,2]
[401893507,1768397455283,-591.092287,0.00021918,2]
[401893509,1768397455292,-151.0,0.00021918,2]
[401893511,1768397455302,-151.0,0.00021918,2]
[401893514,1768397455312,-279.449263,0.00021918,2]
[401893515,1768397455323,-151.0,0.00021918,2]
[401893518,1768397455332,-255.526264,0.00021918,2]
[401893519,1768397455342,-151.0,0.00021918,2]
[401893521,1768397455351,-151.0,0.00021918,2]
[401893524,1768397455360,-1200.0,0.00021918,2]
[401893525,1768397455369,-650.0,0.00021918,2]
[401893527,1768397455379,-8000.0,0.00021918,2]
[401893529,1768397455388,-151.0,0.00021918,2]
[401893531,1768397455397,-151.0,0.00021918,2]
[401893533,1768397455406,-151.0,0.00021918,2]
[401893535,1768397455416,-240.635546,0.00021918,2]
[401893537,1768397455425,-1617.521004,0.00021918,2]
[401893539,1768397455434,-1617.521004,0.00021918,2]
[401893541,1768397455443,-1617.521004,0.00021918,2]
[401893543,1768397455452,-1617.521004,0.00021918,2]
[401893545,1768397455461,-151.0,0.00021918,2]
[401893547,1768397455471,-591.092287,0.00021918,2]
[401893549,1768397455480,-591.092287,0.00021918,2]
[401893551,1768397455490,-591.092287,0.00021918,2]
[401893553,1768397455499,-151.0,0.00021918,2]
[401893555,1768397455509,-591.092287,0.00021918,2]
[401893557,1768397455519,-285.163634,0.00021918,2]
[401893559,1768397455528,-568.82796279,0.0002196,10]
[401893561,1768397455537,-1119.07702779,0.00021963,16]
[401893563,1768397455547,-2148.17,0.00022,7]
[401893565,1768397455557,-2000.0,0.00022063,7]
[401893567,1768397455566,-180.10986702,0.00022102,2]
[401893569,1768397455576,-155.0,0.0002219,2]
[401893571,1768397455585,-713.97283296,0.00022343,2]
[401893573,1768397455595,-300.0,0.00022466,2]
[401893575,1768397455608,-200.0,0.00022466,2]
[401893577,1768397455617,-750.0,0.00022466,2]
[401893579,1768397455627,-2364.52541442,0.00022466,2]
[401893581,1768397455636,-1033.75044732,0.000225,2]
[401893583,1768397455647,-6198.0,0.00022504,2]
[401893585,1768397455656,-11434.83681079,0.00022577,2]
[401893587,1768397455665,-1140.2,0.00022782,2]
[401893589,1768397455676,-740.38982778,0.00022891,2]
[401893591,1768397455685,-1000.0,0.00022983,10]
[401893593,1768397455694,-1000.0,0.00022983,10]
[401893595,1768397455704,-1000.0,0.00022983,10]
[401893597,1768397455713,-1119.07702779,0.00022986,17]
[401893599,1768397455723,-204.77151589,0.00022995,120]
[401893601,1768397455733,-450.0,0.00023014,2]
[401893603,1768397455742,-1400.0,0.00023014,2]
[401893605,1768397455751,-850.0,0.00023014,2]
[401893607,1768397455761,-250.0,0.00023014,2]
[401893609,1768397455770,-38726.83,0.000231,2]
[401893611,1768397455779,-2000.0,0.00023144,2]
[401893613,1768397455788,-182.95072115,0.0002315,2]
[401893615,1768397455797,-2000.0,0.00023177,2]
[401893617,1768397455807,-800.0,0.00023195,2]
[401893619,1768397455816,-293.85068442,0.00023209,2]
[401893621,1768397455825,-500.0,0.00023237,2]
[401893623,1768397455834,-901.46550708,0.00023278,2]
[401893625,1768397455843,-500.0,0.00023308,2]
[401893627,1768397455852,-2978.50929977,0.00023319,2]
[401893629,1768397455861,-1000.0,0.00023319,2]
[401893631,1768397455871,-500.0,0.00023334,2]
[401893633,1768397455882,-2000.0,0.00023345,7]
[401893635,1768397455891,-500.0,0.00023372,2]
[401893637,1768397455900,-1000.0,0.00023392,2]
[401893639,1768397455909,-2000.0,0.00023395,2]
[401893641,1768397455918,-2000.0,0.00023403,2]
[401893643,1768397455927,-767.7842514,0.00023439,2]
[401893651,1768397455989,-2000.0,0.00023451,2]
[401893653,1768397456000,-2000.0,0.00023453,2]
[401893655,1768397456009,-2000.0,0.00023456,2]
[401893657,1768397456019,-800.0,0.00023464,2]
[401893659,1768397456028,-2000.0,0.00023487,2]
[401893661,1768397456038,-5469.7,0.000235,14]
[401893663,1768397456047,-167.77,0.000235,7]
[401893665,1768397456057,-431.74536,0.000235,2]
[401893667,1768397456066,-431.74536,0.000235,2]
[401893669,1768397456075,-431.74536,0.000235,2]
[401893671,1768397456085,-431.74536,0.000235,2]
[401893673,1768397456094,-3688.352014,0.000235,2]
[401893675,1768397456105,-3688.352014,0.000235,2]
[401893677,1768397456114,-3688.352014,0.000235,2]
[401893679,1768397456123,-3688.352014,0.000235,2]
[401893681,1768397456132,-261.329291,0.000235,2]
[401893683,1768397456141,-261.329291,0.000235,2]
[401893685,1768397456150,-261.329291,0.000235,2]
[401893687,1768397456159,-261.329291,0.000235,2]
[401893689,1768397456168,-151.3487,0.000235,2]
[401893691,1768397456177,-171.590908,0.000235,2]
[401893693,1768397456186,-151.3487,0.000235,2]
[401893694,1768397456195,-151.3487,0.000235,2]
[401893696,1768397456203,-151.3487,0.000235,2]
[401893698,1768397456212,-151.0,0.000235,2]
[401893700,1768397456221,-151.0,0.000235,2]
[401893702,1768397456231,-1000.0,0.00023542,2]
[401893704,1768397456240,-522.88356834,0.00023544,2]
[401893706,1768397456249,-1393.68201338,0.00023544,2]
[401893708,1768397456258,-600.0,0.00023562,2]
[401893710,1768397456267,-950.0,0.00023562,2]
[401893712,1768397456276,-210.92385342,0.00023562,2]
[401893714,1768397456285,-1000.0,0.00023562,2]